fUSD/lending_fUSD_20260614
["ID","MTS","AMOUNT","RATE_DAILY","PERIOD"]
[425058301,1781447521000,-1296.71,0.00029863,8]
[425058315,1781447521000,-500.0,0.00029863,8]
[425058292,1781447521000,-25282.9,0.00029863,8]
[425058303,1781447521000,-2890.54,0.00029863,8]
[425058314,1781447521000,-500.0,0.00029863,8]
[425058310,1781447521000,-1214.13,0.00029863,8]
[425058318,1781447521000,-500.0,0.00029863,8]
[425058312,1781447521000,-500.0,0.00029863,8]
[425058311,1781447521000,-595.31,0.00029863,8]
[425058313,1781447521000,-1866.64,0.00029863,8]
[425058308,1781447521000,-1343.56,0.00029863,8]
[425058305,1781447521000,-500.0,0.00029863,8]
[425058306,1781447521000,-1828.15,0.00029863,8]
[425058307,1781447521000,-500.0,0.00029863,8]
[425058304,1781447521000,-1801.16,0.00029863,8]
[425058309,1781447521000,-1463.18,0.00029863,8]
[425058369,1781447522000,-955.12,0.00029863,8]
[425058372,1781447522000,-500.0,0.00029863,8]
[425058371,1781447522000,-577.21,0.00029863,8]
[425058373,1781447522000,-500.0,0.00029863,8]
[425058374,1781447522000,-2104.15,0.00029863,8]
[425058377,1781447522000,-800.7,0.00029863,8]
[425058376,1781447522000,-500.0,0.00029863,8]
[425058379,1781447522000,-921.05,0.00029863,8]
[425058381,1781447522000,-1133.48,0.00029863,8]
[425058380,1781447522000,-500.0,0.00029863,8]
[425058387,1781447522000,-500.0,0.00029863,8]
[425058383,1781447522000,-500.0,0.00029863,8]
[425058385,1781447522000,-500.0,0.00029863,8]
[425058384,1781447522000,-922.21,0.00029863,8]
[425058388,1781447522000,-500.0,0.00029863,8]
[425058389,1781447522000,-837.18,0.00029863,8]
[425058391,1781447522000,-741.37,0.00029863,8]
[425058390,1781447522000,-500.0,0.00029863,8]
[425058368,1781447522000,-1648.13,0.00029863,8]
[425058392,1781447522000,-1791.15813918,0.00029886,2]
[425058382,1781447522000,-500.0,0.00029863,8]
[425058378,1781447522000,-500.0,0.00029863,8]
[425058356,1781447522000,-2061.13,0.00029863,8]
[425058375,1781447522000,-1609.77,0.00029863,8]
[425058393,1781447522000,-10000.0,0.0002989,20]
[425058349,1781447522000,-500.0,0.00029863,8]
[425058350,1781447522000,-822.75,0.00029863,8]
[425058353,1781447522000,-500.0,0.00029863,8]
[425058351,1781447522000,-12728.02,0.00029863,8]
[425058348,1781447522000,-900.28,0.00029863,8]
[425058352,1781447522000,-500.0,0.00029863,8]
[425058355,1781447522000,-500.0,0.00029863,8]
[425058365,1781447522000,-640.65,0.00029863,8]
[425058370,1781447522000,-861.57,0.00029863,8]
[425058354,1781447522000,-500.0,0.00029863,8]
[425058357,1781447522000,-1297.07,0.00029863,8]
[425058361,1781447522000,-1057.08,0.00029863,8]
[425058359,1781447522000,-485.39625495,0.00029863,8]
[425058360,1781447522000,-500.0,0.00029863,8]
[425058358,1781447522000,-649.93,0.00029863,8]
[425058362,1781447522000,-1326.3,0.00029863,8]
[425058364,1781447522000,-707.22,0.00029863,8]
[425058366,1781447522000,-1599.83,0.00029863,8]
[425058367,1781447522000,-5289.14,0.00029863,8]
[425058363,1781447522000,-500.0,0.00029863,8]
[425058394,1781447522000,-10458.15715572,0.000299,2]
[425058386,1781447522000,-500.0,0.00029863,8]
[425058396,1781447522000,-1568.53,0.000299,7]
[425058421,1781447522000,-200.0,0.0003,11]
[425058423,1781447522000,-12702.15357194,0.0003,7]
[425058420,1781447522000,-200.0,0.0003,11]
[425058427,1781447522000,-1126.66189112,0.0003,2]
[425058425,1781447522000,-20284.58631583,0.0003,2]
[425058430,1781447522000,-166.3091421,0.0003,2]
[425058428,1781447522000,-1855.06788184,0.0003,2]
[425058436,1781447522000,-589.15209832,0.0003,4]
[425058426,1781447522000,-2000.0,0.0003,3]
[425058418,1781447522000,-1060.72172369,0.0003,7]
[425058433,1781447522000,-1014.57096206,0.0003,2]
[425058434,1781447522000,-27079.61164543,0.0003,5]
[425058432,1781447522000,-211.02,0.0003,11]
[425058431,1781447522000,-200.0,0.0003,11]
[425058435,1781447522000,-5518.5780275,0.0003,3]
[425058438,1781447522000,-200.0,0.0003,11]
[425058441,1781447522000,-2549.81723586,0.0003,2]
[425058437,1781447522000,-200.0,0.0003,11]
[425058439,1781447522000,-200.0,0.0003,11]
[425058395,1781447522000,-1402.89,0.000299,7]
[425058429,1781447522000,-1000.0,0.0003,2]
[425058422,1781447522000,-12702.15357194,0.0003,7]
[425058419,1781447522000,-200.0,0.0003,11]
[425058424,1781447522000,-1001.88905932,0.0003,2]
[425058398,1781447522000,-550.65082291,0.000299,2]
[425058397,1781447522000,-550.65082291,0.000299,2]
[425058399,1781447522000,-550.65082291,0.000299,2]
[425058400,1781447522000,-550.65082291,0.000299,2]
[425058402,1781447522000,-550.65082291,0.000299,2]
[425058409,1781447522000,-2963.12958666,0.0002998,3]
[425058417,1781447522000,-211.01973411,0.0003,2]
[425058413,1781447522000,-520.0,0.0003,2]
[425058411,1781447522000,-50000.0,0.0003,2]
[425058410,1781447522000,-241.89663089,0.0002999,2]
[425058412,1781447522000,-16375.99143935,0.0003,3]
[425058440,1781447522000,-200.0,0.0003,11]
[425058405,1781447522000,-1791.15813918,0.00029923,2]
[425058403,1781447522000,-550.65082291,0.000299,2]
[425058416,1781447522000,-275.28928489,0.0003,2]
[425058414,1781447522000,-865.0,0.0003,2]
[425058408,1781447522000,-784.38475298,0.0002997,2]
[425058415,1781447522000,-519.7960017,0.0003,7]
[425058406,1781447522000,-152.0,0.00029945,4]
[425058404,1781447522000,-2400.0,0.000299,10]
[425058401,1781447522000,-550.65082291,0.000299,2]
[425058407,1781447522000,-1791.15813918,0.00029957,2]
[425058449,1781447525000,-862.64,0.00027397,2]
[425058442,1781447525000,-4239.56451,0.00017575,2]
[425058445,1781447525000,-4239.56451,0.00018912,2]
[425058446,1781447525000,-300.0,0.000251,2]
[425058448,1781447525000,-1434.77,0.00027397,2]
[425058447,1781447525000,-1401.83,0.00027397,2]
[425058443,1781447525000,-172.887456,0.00017774,2]
[425058444,1781447525000,-2500.0,0.0001789,2]
[425058450,1781447525000,-500.0,0.00027397,2]
[425058451,1781447525000,-1042.18,0.00027397,2]
[425058452,1781447525000,-1106.5,0.00027397,2]
[425058459,1781447525000,-1266.56843188,0.00027671,8]
[425058453,1781447525000,-500.0,0.00027397,2]
[425058454,1781447525000,-5456.04,0.00027397,2]
[425058461,1781447525000,-539.18823348,0.00027671,8]
[425058460,1781447525000,-168.20156812,0.00027671,8]
[425058457,1781447525000,-80.46968953,0.00027671,8]
[425058462,1781447525000,-323.45176652,0.00027671,8]
[425058456,1781447525000,-519.54034603,0.00027397,10]
[425058458,1781447525000,-1321.36031047,0.00027671,8]
[425058463,1781447525000,-252.29772627,0.00027671,8]
[425058455,1781447525000,-6488.45965397,0.00027397,10]
[425058493,1781447530000,-862.64,0.00028767,8]
[425058492,1781447530000,-1434.77,0.00028767,8]
[425058494,1781447530000,-1106.5,0.00028767,8]
[425058516,1781447530000,-1042.18,0.00029315,8]
[425058484,1781447530000,-1434.77,0.00028493,8]
[425058488,1781447530000,-5456.04,0.00028493,8]
[425058498,1781447530000,-1160.08,0.00029022,7]
[425058491,1781447530000,-1401.83,0.00028767,8]
[425058502,1781447530000,-1401.83,0.00029041,8]
[425058501,1781447530000,-500.0,0.00029041,8]
[425058495,1781447530000,-1042.18,0.00028767,8]
[425058500,1781447530000,-500.0,0.00029041,8]
[425058497,1781447530000,-1160.08,0.00028799,30]
[425058499,1781447530000,-1698.66,0.00029041,8]
[425058486,1781447530000,-1106.5,0.00028493,8]
[425058504,1781447530000,-862.64,0.00029041,8]
[425058503,1781447530000,-1434.77,0.00029041,8]
[425058505,1781447530000,-1106.5,0.00029041,8]
[425058506,1781447530000,-1042.18,0.00029041,8]
[425058496,1781447530000,-5456.04,0.00028767,8]
[425058487,1781447530000,-1042.18,0.00028493,8]
[425058482,1781447530000,-500.0,0.00028493,8]
[425058485,1781447530000,-862.64,0.00028493,8]
[425058465,1781447530000,-789.88227373,0.00027671,8]
[425058466,1781447530000,-1106.5,0.00027671,8]
[425058470,1781447530000,-862.64,0.00027945,8]
[425058471,1781447530000,-1042.18,0.00027945,8]
[425058469,1781447530000,-1434.77,0.00027945,8]
[425058467,1781447530000,-5456.04,0.00027671,8]
[425058468,1781447530000,-1401.83,0.00027945,8]
[425058473,1781447530000,-5456.04,0.00027945,8]
[425058474,1781447530000,-500.0,0.00028219,8]
[425058472,1781447530000,-1106.5,0.00027945,8]
[425058475,1781447530000,-1401.83,0.00028219,8]
[425058478,1781447530000,-1042.18,0.00028219,8]
[425058477,1781447530000,-862.64,0.00028219,8]
[425058479,1781447530000,-1106.5,0.00028219,8]
[425058476,1781447530000,-1434.77,0.00028219,8]
[425058480,1781447530000,-5456.04,0.00028219,8]
[425058481,1781447530000,-500.0,0.00028493,8]
[425058483,1781447530000,-1401.83,0.00028493,8]
[425058490,1781447530000,-500.0,0.00028767,8]
[425058489,1781447530000,-500.0,0.00028767,8]
[425058515,1781447530000,-1106.5,0.00029315,8]
[425058510,1781447530000,-500.0,0.00029315,8]
[425058509,1781447530000,-1698.66,0.00029315,8]
[425058535,1781447530000,-8857.03969627,0.0003,2]
[425058538,1781447530000,-10000.0,0.0003,2]
[425058533,1781447530000,-1106.5,0.00029863,8]
[425058530,1781447530000,-1401.83,0.00029863,8]
[425058539,1781447530000,-3049.24769055,0.0003,2]
[425058536,1781447530000,-5000.0,0.0003,3]
[425058540,1781447530000,-100000.4342377,0.0003,7]
[425058542,1781447530000,-35236.95518952,0.0003,5]
[425058546,1781447530000,-3000.0,0.0003,10]
[425058547,1781447530000,-3000.0,0.0003,20]
[425058553,1781447530000,-12499.99,0.0003,2]
[425058544,1781447530000,-200.6173973,0.0003,2]
[425058550,1781447530000,-11212.38,0.0003,2]
[425058545,1781447530000,-407.90927655,0.0003,14]
[425058548,1781447530000,-256.74186269,0.0003,7]
[425058552,1781447530000,-22499.99,0.0003,2]
[425058551,1781447530000,-12499.98,0.0003,2]
[425058543,1781447530000,-200.0,0.0003,11]
[425058517,1781447530000,-5871.97,0.00029589,8]
[425058537,1781447530000,-3303.0,0.0003,15]
[425058534,1781447530000,-1042.18,0.00029863,8]
[425058549,1781447530000,-20000.0,0.0003,10]
[425058541,1781447530000,-38531.13971821,0.0003,7]
[425058508,1781447530000,-5871.97,0.00029315,8]
[425058507,1781447530000,-5456.04,0.00029041,8]
[425058532,1781447530000,-862.64,0.00029863,8]
[425058511,1781447530000,-500.0,0.00029315,8]
[425058513,1781447530000,-1434.77,0.00029315,8]
[425058514,1781447530000,-862.64,0.00029315,8]
[425058518,1781447530000,-1698.66,0.00029589,8]
[425058520,1781447530000,-500.0,0.00029589,8]
[425058519,1781447530000,-500.0,0.00029589,8]
[425058512,1781447530000,-1401.83,0.00029315,8]
[425058529,1781447530000,-500.0,0.00029863,8]
[425058523,1781447530000,-862.64,0.00029589,8]
[425058522,1781447530000,-1434.77,0.00029589,8]
[425058527,1781447530000,-1698.66,0.00029863,8]
[425058524,1781447530000,-1106.5,0.00029589,8]
[425058525,1781447530000,-1042.18,0.00029589,8]
[425058531,1781447530000,-1434.77,0.00029863,8]
[425058521,1781447530000,-1401.83,0.00029589,8]
[425058528,1781447530000,-500.0,0.00029863,8]
[425058526,1781447530000,-5871.97,0.00029863,8]
[425058597,1781447531000,-2500.0,0.0003,2]
[425058592,1781447531000,-1555.22,0.0003,2]
[425058596,1781447531000,-2499.99,0.0003,2]
[425058595,1781447531000,-2500.0,0.0003,2]
[425058587,1781447531000,-2500.0,0.0003,2]
[425058585,1781447531000,-24999.99,0.0003,2]
[425058588,1781447531000,-22499.99,0.0003,2]
[425058586,1781447531000,-22500.0,0.0003,2]
[425058584,1781447531000,-24999.99,0.0003,2]
[425058593,1781447531000,-2471.81,0.0003,2]
[425058579,1781447531000,-286.58,0.0003,2]
[425058589,1781447531000,-22500.0,0.0003,2]
[425058601,1781447531000,-22500.0,0.0003,2]
[425058616,1781447531000,-500.0,0.0003,2]
[425058603,1781447531000,-15000.0,0.0003,2]
[425058598,1781447531000,-25000.0,0.0003,2]
[425058594,1781447531000,-25000.0,0.0003,2]
[425058604,1781447531000,-2500.0,0.0003,2]
[425058602,1781447531000,-10000.0,0.0003,2]
[425058600,1781447531000,-6351.14,0.0003,2]
[425058606,1781447531000,-151.0,0.0003,7]
[425058605,1781447531000,-151.0,0.0003,7]
[425058607,1781447531000,-151.0,0.0003,7]
[425058608,1781447531000,-151.0,0.0003,7]
[425058609,1781447531000,-151.0,0.0003,7]
[425058582,1781447531000,-22499.99,0.0003,2]
[425058599,1781447531000,-12500.0,0.0003,2]
[425058581,1781447531000,-10500.0,0.0003,2]
[425058559,1781447531000,-12500.0,0.0003,2]
[425058590,1781447531000,-369.55267,0.0003,30]
[425058612,1781447531000,-1337.092731,0.0003,7]
[425058554,1781447531000,-24999.99,0.0003,2]
[425058556,1781447531000,-2500.0,0.0003,2]
[425058555,1781447531000,-22500.0,0.0003,2]
[425058566,1781447531000,-336.63,0.0003,2]
[425058558,1781447531000,-25000.0,0.0003,2]
[425058557,1781447531000,-2500.0,0.0003,2]
[425058560,1781447531000,-2500.0,0.0003,2]
[425058561,1781447531000,-22500.0,0.0003,2]
[425058564,1781447531000,-2716.86,0.0003,2]
[425058563,1781447531000,-25000.0,0.0003,2]
[425058562,1781447531000,-2499.97,0.0003,2]
[425058565,1781447531000,-2500.0,0.0003,2]
[425058568,1781447531000,-185.77,0.0003,2]
[425058578,1781447531000,-7999.59,0.0003,2]
[425058572,1781447531000,-8496.47,0.0003,2]
[425058571,1781447531000,-328.86,0.0003,2]
[425058574,1781447531000,-209.66,0.0003,2]
[425058573,1781447531000,-699.57,0.0003,2]
[425058575,1781447531000,-301.72,0.0003,2]
[425058569,1781447531000,-191.51,0.0003,2]
[425058567,1781447531000,-524.63,0.0003,2]
[425058577,1781447531000,-342.66,0.0003,2]
[425058576,1781447531000,-398.16,0.0003,2]
[425058570,1781447531000,-12188.96,0.0003,2]
[425058580,1781447531000,-2499.99,0.0003,2]
[425058591,1781447531000,-24999.97,0.0003,2]
[425058583,1781447531000,-2499.99,0.0003,2]
[425058614,1781447531000,-369.55267,0.0003,30]
[425058672,1781447531000,-500.0,0.0003,2]
[425058611,1781447531000,-1337.092731,0.0003,7]
[425058650,1781447531000,-500.0,0.0003,2]
[425058652,1781447531000,-500.0,0.0003,2]
[425058648,1781447531000,-500.0,0.0003,2]
[425058645,1781447531000,-500.0,0.0003,2]
[425058647,1781447531000,-500.0,0.0003,2]
[425058651,1781447531000,-500.0,0.0003,2]
[425058646,1781447531000,-500.0,0.0003,2]
[425058654,1781447531000,-500.0,0.0003,2]
[425058664,1781447531000,-500.0,0.0003,2]
[425058655,1781447531000,-500.0,0.0003,2]
[425058663,1781447531000,-500.0,0.0003,2]
[425058657,1781447531000,-500.0,0.0003,2]
[425058660,1781447531000,-500.0,0.0003,2]
[425058653,1781447531000,-151.0,0.0003,7]
[425058659,1781447531000,-500.0,0.0003,2]
[425058661,1781447531000,-500.0,0.0003,2]
[425058656,1781447531000,-500.0,0.0003,2]
[425058658,1781447531000,-500.0,0.0003,2]
[425058662,1781447531000,-500.0,0.0003,2]
[425058665,1781447531000,-500.0,0.0003,2]
[425058668,1781447531000,-500.0,0.0003,2]
[425058613,1781447531000,-1337.092731,0.0003,7]
[425058673,1781447531000,-500.0,0.0003,2]
[425058669,1781447531000,-500.0,0.0003,2]
[425058666,1781447531000,-500.0,0.0003,2]
[425058671,1781447531000,-500.0,0.0003,2]
[425058670,1781447531000,-500.0,0.0003,2]
[425058649,1781447531000,-500.0,0.0003,2]
[425058644,1781447531000,-500.0,0.0003,2]
[425058667,1781447531000,-500.0,0.0003,2]
[425058643,1781447531000,-500.0,0.0003,2]
[425058642,1781447531000,-500.0,0.0003,2]
[425058615,1781447531000,-500.0,0.0003,2]
[425058610,1781447531000,-1337.092731,0.0003,7]
[425058619,1781447531000,-500.0,0.0003,2]
[425058618,1781447531000,-500.0,0.0003,2]
[425058621,1781447531000,-500.0,0.0003,2]
[425058620,1781447531000,-500.0,0.0003,2]
[425058625,1781447531000,-500.0,0.0003,2]
[425058626,1781447531000,-500.0,0.0003,2]
[425058623,1781447531000,-500.0,0.0003,2]
[425058627,1781447531000,-500.0,0.0003,2]
[425058622,1781447531000,-500.0,0.0003,2]
[425058624,1781447531000,-500.0,0.0003,2]
[425058617,1781447531000,-500.0,0.0003,2]
[425058630,1781447531000,-500.0,0.0003,2]
[425058628,1781447531000,-500.0,0.0003,2]
[425058637,1781447531000,-500.0,0.0003,2]
[425058639,1781447531000,-500.0,0.0003,2]
[425058633,1781447531000,-500.0,0.0003,2]
[425058638,1781447531000,-500.0,0.0003,2]
[425058634,1781447531000,-500.0,0.0003,2]
[425058635,1781447531000,-500.0,0.0003,2]
[425058632,1781447531000,-500.0,0.0003,2]
[425058636,1781447531000,-500.0,0.0003,2]
[425058629,1781447531000,-500.0,0.0003,2]
[425058641,1781447531000,-500.0,0.0003,2]
[425058640,1781447531000,-500.0,0.0003,2]
[425058631,1781447531000,-500.0,0.0003,2]
[425058699,1781447532000,-320.30514,0.0003,7]
[425058700,1781447532000,-983.50192,0.0003,7]
[425058703,1781447532000,-983.50192,0.0003,7]
[425058704,1781447532000,-983.50192,0.0003,7]
[425058705,1781447532000,-728.612861,0.0003,7]
[425058706,1781447532000,-728.612861,0.0003,7]
[425058710,1781447532000,-151.0,0.0003,7]
[425058708,1781447532000,-728.612861,0.0003,7]
[425058711,1781447532000,-2139.126436,0.0003,7]
[425058702,1781447532000,-983.50192,0.0003,7]
[425058715,1781447532000,-889.582572,0.0003,7]
[425058707,1781447532000,-728.612861,0.0003,7]
[425058709,1781447532000,-151.0,0.0003,7]
[425058713,1781447532000,-2139.126436,0.0003,7]
[425058714,1781447532000,-2139.126436,0.0003,7]
[425058718,1781447532000,-889.582572,0.0003,7]
[425058725,1781447532000,-233.0,0.00030021,30]
[425058723,1781447532000,-200.0,0.00030017,4]
[425058719,1781447532000,-1000.0,0.0003,14]
[425058717,1781447532000,-889.582572,0.0003,7]
[425058698,1781447532000,-320.30514,0.0003,7]
[425058712,1781447532000,-2139.126436,0.0003,7]
[425058697,1781447532000,-151.0,0.0003,7]
[425058687,1781447532000,-173.124012,0.0003,7]
[425058691,1781447532000,-1889.29925,0.0003,7]
[425058676,1781447532000,-500.0,0.0003,2]
[425058674,1781447532000,-500.0,0.0003,2]
[425058675,1781447532000,-500.0,0.0003,2]
[425058678,1781447532000,-500.0,0.0003,2]
[425058689,1781447532000,-1889.29925,0.0003,7]
[425058688,1781447532000,-200.0,0.0003,2]
[425058677,1781447532000,-500.0,0.0003,2]
[425058680,1781447532000,-500.0,0.0003,2]
[425058679,1781447532000,-173.124012,0.0003,7]
[425058681,1781447532000,-500.0,0.0003,2]
[425058686,1781447532000,-173.124012,0.0003,7]
[425058685,1781447532000,-151.0,0.0003,7]
[425058684,1781447532000,-173.124012,0.0003,7]
[425058682,1781447532000,-500.0,0.0003,2]
[425058683,1781447532000,-503.615223,0.0003,2]
[425058690,1781447532000,-1889.29925,0.0003,7]
[425058692,1781447532000,-1889.29925,0.0003,7]
[425058693,1781447532000,-151.0,0.0003,7]
[425058695,1781447532000,-151.0,0.0003,7]
[425058694,1781447532000,-151.0,0.0003,7]
[425058720,1781447532000,-200.0,0.0003,2]
[425058701,1781447532000,-320.30514,0.0003,7]
[425058721,1781447532000,-650.0,0.0003,2]
[425058696,1781447532000,-320.30514,0.0003,7]
[425058726,1781447532000,-151.0,0.00030027,2]
[425058763,1781447532000,-209.712122,0.00030027,7]
[425058762,1781447532000,-282.554168,0.00030027,7]
[425058754,1781447532000,-209.712122,0.00030027,7]
[425058752,1781447532000,-209.712122,0.00030027,7]
[425058751,1781447532000,-151.0,0.00030027,7]
[425058753,1781447532000,-151.0,0.00030027,7]
[425058755,1781447532000,-151.0,0.00030027,7]
[425058760,1781447532000,-151.0,0.00030027,7]
[425058757,1781447532000,-209.712122,0.00030027,7]
[425058756,1781447532000,-151.0,0.00030027,7]
[425058745,1781447532000,-151.0,0.00030027,7]
[425058758,1781447532000,-151.0,0.00030027,7]
[425058764,1781447532000,-209.712122,0.00030027,7]
[425058766,1781447532000,-209.712122,0.00030027,7]
[425058767,1781447532000,-209.712122,0.00030027,7]
[425058770,1781447532000,-2037.999517,0.00030027,7]
[425058765,1781447532000,-209.712122,0.00030027,7]
[425058771,1781447532000,-2037.999517,0.00030027,7]
[425058768,1781447532000,-209.712122,0.00030027,7]
[425058772,1781447532000,-2037.999517,0.00030027,7]
[425058769,1781447532000,-209.712118,0.00030027,7]
[425058724,1781447532000,-167.0,0.00030021,30]
[425058761,1781447532000,-209.712122,0.00030027,7]
[425058750,1781447532000,-209.712122,0.00030027,7]
[425058759,1781447532000,-209.712122,0.00030027,7]
[425058744,1781447532000,-209.712122,0.00030027,7]
[425058748,1781447532000,-209.712122,0.00030027,7]
[425058716,1781447532000,-889.582572,0.0003,7]
[425058722,1781447532000,-200.0,0.0003,2]
[425058728,1781447532000,-151.0,0.00030027,7]
[425058738,1781447532000,-151.0,0.00030027,7]
[425058729,1781447532000,-151.0,0.00030027,7]
[425058731,1781447532000,-151.0,0.00030027,7]
[425058730,1781447532000,-151.0,0.00030027,7]
[425058737,1781447532000,-151.0,0.00030027,7]
[425058732,1781447532000,-151.0,0.00030027,7]
[425058734,1781447532000,-151.0,0.00030027,7]
[425058727,1781447532000,-250.245403,0.00030027,2]
[425058733,1781447532000,-151.0,0.00030027,7]
[425058735,1781447532000,-151.0,0.00030027,7]
[425058736,1781447532000,-151.0,0.00030027,7]
[425058741,1781447532000,-151.0,0.00030027,7]
[425058739,1781447532000,-160.415038,0.00030027,7]
[425058742,1781447532000,-151.0,0.00030027,7]
[425058743,1781447532000,-151.0,0.00030027,7]
[425058749,1781447532000,-151.0,0.00030027,7]
[425058740,1781447532000,-151.0,0.00030027,7]
[425058746,1781447532000,-209.712122,0.00030027,7]
[425058747,1781447532000,-151.0,0.00030027,7]
[425058813,1781447533000,-12500.0,0.00030125,2]
[425058810,1781447533000,-150.0,0.00030122,2]
[425058809,1781447533000,-5800.0,0.00030117,2]
[425058804,1781447533000,-3235.27,0.000301,2]
[425058805,1781447533000,-1187.43159699,0.0003011,2]
[425058806,1781447533000,-653.08737834,0.0003011,2]
[425058807,1781447533000,-359.19805809,0.0003011,2]
[425058803,1781447533000,-1066.92674947,0.000301,2]
[425058808,1781447533000,-213.72284456,0.0003011,2]
[425058801,1781447533000,-2481.49411911,0.00030079,2]
[425058817,1781447533000,-12500.0,0.00030125,2]
[425058811,1781447533000,-5800.0,0.00030125,2]
[425058820,1781447533000,-1396432.64081227,0.0003013,7]
[425058832,1781447533000,-151.0,0.0003013,7]
[425058816,1781447533000,-17247.1,0.00030125,2]
[425058825,1781447533000,-302.93995937,0.0003013,2]
[425058818,1781447533000,-22500.0,0.00030125,2]
[425058819,1781447533000,-1095.9454572,0.0003013,2]
[425058823,1781447533000,-205.84582916,0.0003013,2]
[425058814,1781447533000,-22500.0,0.00030125,2]
[425058821,1781447533000,-558140.45843193,0.0003013,7]
[425058824,1781447533000,-480.95245293,0.0003013,2]
[425058822,1781447533000,-647.30336301,0.0003013,2]
[425058827,1781447533000,-585464.56040281,0.0003013,7]
[425058830,1781447533000,-158.509308,0.0003013,7]
[425058812,1781447533000,-2007.32,0.00030125,2]
[425058815,1781447533000,-22500.0,0.00030125,2]
[425058802,1781447533000,-1791.15813918,0.00030093,2]
[425058773,1781447533000,-2037.999517,0.00030027,7]
[425058790,1781447533000,-154.0,0.00030028,30]
[425058774,1781447533000,-2037.999517,0.00030027,7]
[425058776,1781447533000,-2037.999517,0.00030027,7]
[425058775,1781447533000,-2037.999517,0.00030027,7]
[425058828,1781447533000,-155167.50250624,0.0003013,2]
[425058778,1781447533000,-2037.999517,0.00030027,7]
[425058777,1781447533000,-2037.999517,0.00030027,7]
[425058779,1781447533000,-2037.999517,0.00030027,7]
[425058780,1781447533000,-2037.999517,0.00030027,7]
[425058781,1781447533000,-2037.999517,0.00030027,7]
[425058788,1781447533000,-152.0,0.00030028,30]
[425058782,1781447533000,-2037.999517,0.00030027,7]
[425058786,1781447533000,-319.496475,0.00030027,30]
[425058800,1781447533000,-547.0,0.00030063,30]
[425058784,1781447533000,-2037.999517,0.00030027,7]
[425058785,1781447533000,-2037.999525,0.00030027,7]
[425058787,1781447533000,-503.0,0.00030028,30]
[425058789,1781447533000,-410.0,0.00030028,30]
[425058791,1781447533000,-168.0,0.00030028,30]
[425058792,1781447533000,-324.0,0.00030028,30]
[425058796,1781447533000,-3189.0,0.00030032,30]
[425058794,1781447533000,-284.0,0.00030032,30]
[425058793,1781447533000,-921.83140623,0.0003003,2]
[425058795,1781447533000,-689.0,0.00030032,30]
[425058798,1781447533000,-190.0,0.00030032,30]
[425058799,1781447533000,-3681.76344744,0.00030042,2]
[425058797,1781447533000,-350.0,0.00030032,30]
[425058783,1781447533000,-2037.999517,0.00030027,7]
[425058829,1781447533000,-1283911.37222329,0.0003013,7]
[425058837,1781447533000,-173.124012,0.0003013,7]
[425058831,1781447533000,-151.0,0.0003013,7]